[Event "Titled Tuesday Blitz August 1 Early 2023"]
[White "Nurgaliyeva, Zarina"]
[Black "Zakhartsov, Vladimir"]
[WhiteFideId "13730096"]
[BlackFideId "4145097"]
[WhiteElo "2595"]
[BlackElo "2943"]
[Result "0-1"]
[Round "2"]
[TimeControl "180+1"]
[Date "2023.08.01"]
[WhiteClock "0:00:00"]
[BlackClock "0:00:03"]
[Board "21"]

1. e4 {[%clk 0:03:00]}  c5 {[%clk 0:02:51]} 2. Nf3 {[%clk 0:02:59]}  e6 {[%clk 0:02:51]} 3. c3 {[%clk 0:02:47]}  Nf6 {[%clk 0:02:47]} 4. e5 {[%clk 0:02:47]}  Nd5 {[%clk 0:02:47]} 5. d4 {[%clk 0:02:48]}  cxd4 {[%clk 0:02:48]} 6. cxd4 {[%clk 0:02:48]}  d6 {[%clk 0:02:49]} 7. Bc4 {[%clk 0:02:49]}  Nb6 {[%clk 0:02:48]} 8. Bd3 {[%clk 0:02:47]}  Nc6 {[%clk 0:02:38]} 9. Qe2 {[%clk 0:02:35]}  Nb4 {[%clk 0:02:32]} 10. Be4 {[%clk 0:02:08]}  d5 {[%clk 0:02:27]} 11. Bd3 {[%clk 0:02:04]}  Be7 {[%clk 0:02:17]} 12. Nc3 {[%clk 0:01:55]}  Nxd3+ {[%clk 0:02:16]} 13. Qxd3 {[%clk 0:01:56]}  O-O {[%clk 0:02:15]} 14. O-O {[%clk 0:01:56]}  Bd7 {[%clk 0:02:14]} 15. Bf4 {[%clk 0:01:34]}  Rc8 {[%clk 0:02:13]} 16. Rfc1 {[%clk 0:01:20]}  Nc4 {[%clk 0:02:03]} 17. b3 {[%clk 0:01:18]}  Na3 {[%clk 0:02:02]} 18. Nb1 {[%clk 0:00:50]}  Bb5 {[%clk 0:01:43]} 19. Qd2 {[%clk 0:00:27]}  Rxc1+ {[%clk 0:01:32]} 20. Qxc1 {[%clk 0:00:26]}  Nxb1 {[%clk 0:01:32]} 21. Rxb1 {[%clk 0:00:27]}  Bd3 {[%clk 0:01:32]} 22. Ra1 {[%clk 0:00:27]}  Qa5 {[%clk 0:01:28]} 23. Qd2 {[%clk 0:00:21]}  Qxd2 {[%clk 0:01:05]} 24. Bxd2 {[%clk 0:00:22]}  Bd8 {[%clk 0:00:58]} 25. Rc1 {[%clk 0:00:20]}  Bb6 {[%clk 0:00:56]} 26. Bb4 {[%clk 0:00:20]}  Re8 {[%clk 0:00:53]} 27. Bc5 {[%clk 0:00:21]}  Rc8 {[%clk 0:00:51]} 28. b4 {[%clk 0:00:21]}  Bd8 {[%clk 0:00:43]} 29. Rd1 {[%clk 0:00:18]}  Be2 {[%clk 0:00:39]} 30. Rd2 {[%clk 0:00:18]}  Bxf3 {[%clk 0:00:34]} 31. gxf3 {[%clk 0:00:19]}  b6 {[%clk 0:00:34]} 32. Bd6 {[%clk 0:00:20]}  Bg5 {[%clk 0:00:29]} 33. Rb2 {[%clk 0:00:19]}  Rc4 {[%clk 0:00:28]} 34. Kg2 {[%clk 0:00:14]}  Rxd4 {[%clk 0:00:27]} 35. Rc2 {[%clk 0:00:15]}  Rc4 {[%clk 0:00:27]} 36. Rb2 {[%clk 0:00:13]}  h5 {[%clk 0:00:23]} 37. a4 {[%clk 0:00:13]}  Bf4 {[%clk 0:00:16]} 38. a5 {[%clk 0:00:12]}  Kh7 {[%clk 0:00:12]} 39. axb6 {[%clk 0:00:12]}  axb6 {[%clk 0:00:13]} 40. Ra2 {[%clk 0:00:12]}  Kg6 {[%clk 0:00:11]} 41. Ra6 {[%clk 0:00:08]}  Rc2 {[%clk 0:00:10]} 42. Rxb6 {[%clk 0:00:06]}  Be3 {[%clk 0:00:10]} 43. Rb7 {[%clk 0:00:07]}  Rxf2+ {[%clk 0:00:09]} 44. Kg3 {[%clk 0:00:07]}  Rb2 {[%clk 0:00:08]} 45. b5 {[%clk 0:00:07]}  Bf2+ {[%clk 0:00:08]} 46. Kh3 {[%clk 0:00:05]}  Bg1 {[%clk 0:00:08]} 47. Bc7 {[%clk 0:00:03]}  Rxh2+ {[%clk 0:00:07]} 48. Kg3 {[%clk 0:00:04]}  h4+ {[%clk 0:00:08]} 49. Kg4 {[%clk 0:00:03]}  h3 {[%clk 0:00:03]} 50. Kg3 {[%clk 0:00:03]}  Rh1 {[%clk 0:00:03]} 51. b6 {[%clk 0:00:02]}  f6 {[%clk 0:00:03]} 52. exf6 {[%clk 0:00:01]}  gxf6 {[%clk 0:00:03]} 53. Bd8 {[%clk 0:00:01]}  Bd4 {[%clk 0:00:03]} 54. Rd7 {[%clk 0:00:00]}  Be5+ {[%clk 0:00:03]} 0-1


[Site "https://www.chess.com"]

[Event "Titled Tuesday Blitz August 1 Early 2023"]
[White "Kashlinskaya, Alina"]
[Black "Movahed, Sina"]
[WhiteFideId "4198026"]
[BlackFideId "42520835"]
[WhiteElo "2588"]
[BlackElo "2939"]
[Result "0-1"]
[Round "2"]
[TimeControl "180+1"]
[Date "2023.08.01"]
[WhiteClock "0:00:05"]
[BlackClock "0:00:46"]
[Board "23"]

1. Nf3 {[%clk 0:03:00]}  Nf6 {[%clk 0:02:59]} 2. g3 {[%clk 0:02:55]}  g6 {[%clk 0:02:56]} 3. Bg2 {[%clk 0:02:55]}  Bg7 {[%clk 0:02:57]} 4. O-O {[%clk 0:02:52]}  O-O {[%clk 0:02:57]} 5. d4 {[%clk 0:02:50]}  d6 {[%clk 0:02:57]} 6. Re1 {[%clk 0:02:47]}  Bf5 {[%clk 0:02:52]} 7. Nh4 {[%clk 0:02:42]}  Be4 {[%clk 0:02:50]} 8. f3 {[%clk 0:02:20]}  Bc6 {[%clk 0:02:50]} 9. e4 {[%clk 0:02:21]}  e6 {[%clk 0:02:50]} 10. Nc3 {[%clk 0:02:12]}  b5 {[%clk 0:02:48]} 11. a3 {[%clk 0:02:11]}  a5 {[%clk 0:02:47]} 12. Be3 {[%clk 0:02:07]}  b4 {[%clk 0:02:39]} 13. axb4 {[%clk 0:02:07]}  axb4 {[%clk 0:02:39]} 14. Rxa8 {[%clk 0:02:08]}  Bxa8 {[%clk 0:02:40]} 15. Na2 {[%clk 0:01:58]}  Na6 {[%clk 0:02:39]} 16. Bf1 {[%clk 0:01:52]}  Qc8 {[%clk 0:02:27]} 17. Qd2 {[%clk 0:01:50]}  c5 {[%clk 0:02:25]} 18. Ra1 {[%clk 0:01:36]}  Bb7 {[%clk 0:02:14]} 19. Nc1 {[%clk 0:01:26]}  Nd7 {[%clk 0:02:02]} 20. Nb3 {[%clk 0:01:24]}  cxd4 {[%clk 0:01:53]} 21. Bxd4 {[%clk 0:01:23]}  Ne5 {[%clk 0:01:47]} 22. Na5 {[%clk 0:01:15]}  Ba8 {[%clk 0:01:33]} 23. Nb3 {[%clk 0:00:56]}  Nc5 {[%clk 0:01:23]} 24. Be3 {[%clk 0:00:21]}  Nxb3 {[%clk 0:01:14]} 25. cxb3 {[%clk 0:00:22]}  d5 {[%clk 0:01:14]} 26. Qxb4 {[%clk 0:00:17]}  dxe4 {[%clk 0:01:12]} 27. fxe4 {[%clk 0:00:17]}  Qc2 {[%clk 0:01:11]} 28. Qd2 {[%clk 0:00:15]}  Qxb3 {[%clk 0:01:06]} 29. Bh6 {[%clk 0:00:15]}  Bxh6 {[%clk 0:01:05]} 30. Qxh6 {[%clk 0:00:16]}  Qb6+ {[%clk 0:01:05]} 31. Kh1 {[%clk 0:00:16]}  Bxe4+ {[%clk 0:01:04]} 32. Bg2 {[%clk 0:00:15]}  Qxb2 {[%clk 0:01:04]} 33. Re1 {[%clk 0:00:14]}  Nd3 {[%clk 0:00:57]} 34. Rf1 {[%clk 0:00:08]}  Bxg2+ {[%clk 0:00:48]} 35. Nxg2 {[%clk 0:00:09]}  Rc8 {[%clk 0:00:48]} 36. Kg1 {[%clk 0:00:09]}  Rc2 {[%clk 0:00:47]} 37. Qh3 {[%clk 0:00:08]}  Qd4+ {[%clk 0:00:46]} 38. Kh1 {[%clk 0:00:05]}  Nf2+ {[%clk 0:00:46]} 0-1


[Site "https://www.chess.com"]

[Event "Titled Tuesday Blitz August 1 Early 2023"]
[White "Lana Rodriguez, David"]
[Black "Gholami Orimi, Mahdi"]
[WhiteFideId "2270803"]
[BlackFideId "12558486"]
[WhiteElo "2587"]
[BlackElo "2916"]
[Result "0-1"]
[Round "2"]
[TimeControl "180+1"]
[Date "2023.08.01"]
[WhiteClock "0:00:19"]
[BlackClock "0:01:06"]
[Board "24"]

1. e4 {[%clk 0:02:55]}  c5 {[%clk 0:02:59]} 2. Nf3 {[%clk 0:02:54]}  Nc6 {[%clk 0:02:58]} 3. c3 {[%clk 0:02:48]}  Nf6 {[%clk 0:02:58]} 4. e5 {[%clk 0:02:48]}  Nd5 {[%clk 0:02:58]} 5. d4 {[%clk 0:02:49]}  cxd4 {[%clk 0:02:59]} 6. Bc4 {[%clk 0:02:49]}  e6 {[%clk 0:02:57]} 7. O-O {[%clk 0:02:44]}  d6 {[%clk 0:02:57]} 8. exd6 {[%clk 0:02:43]}  Bxd6 {[%clk 0:02:57]} 9. cxd4 {[%clk 0:02:42]}  O-O {[%clk 0:02:57]} 10. Nc3 {[%clk 0:02:42]}  Nce7 {[%clk 0:02:53]} 11. Re1 {[%clk 0:02:40]}  Bd7 {[%clk 0:02:52]} 12. Ne5 {[%clk 0:02:38]}  Rc8 {[%clk 0:02:51]} 13. Nxd7 {[%clk 0:02:36]}  Qxd7 {[%clk 0:02:52]} 14. Bxd5 {[%clk 0:02:35]}  exd5 {[%clk 0:02:52]} 15. Qf3 {[%clk 0:02:35]}  Bb4 {[%clk 0:02:49]} 16. Bg5 {[%clk 0:02:30]}  Ng6 {[%clk 0:02:46]} 17. Rac1 {[%clk 0:02:16]}  Bxc3 {[%clk 0:02:45]} 18. Rxc3 {[%clk 0:02:16]}  Rxc3 {[%clk 0:02:45]} 19. Qxc3 {[%clk 0:02:15]}  Rc8 {[%clk 0:02:46]} 20. Qe3 {[%clk 0:02:14]}  f6 {[%clk 0:02:43]} 21. Bf4 {[%clk 0:02:13]}  Kf7 {[%clk 0:02:44]} 22. h3 {[%clk 0:02:07]}  Rc2 {[%clk 0:02:31]} 23. Qb3 {[%clk 0:01:59]}  Qc6 {[%clk 0:02:28]} 24. Be3 {[%clk 0:01:58]}  a5 {[%clk 0:02:20]} 25. g3 {[%clk 0:01:43]}  h5 {[%clk 0:02:19]} 26. h4 {[%clk 0:01:43]}  b5 {[%clk 0:02:08]} 27. a3 {[%clk 0:01:38]}  Qc4 {[%clk 0:02:06]} 28. Qxc4 {[%clk 0:01:35]}  bxc4 {[%clk 0:02:05]} 29. Rb1 {[%clk 0:01:35]}  a4 {[%clk 0:02:01]} 30. Kf1 {[%clk 0:01:35]}  Ne7 {[%clk 0:01:53]} 31. Ke1 {[%clk 0:01:16]}  Nf5 {[%clk 0:01:45]} 32. Bd2 {[%clk 0:01:16]}  Nxd4 {[%clk 0:01:46]} 33. Kd1 {[%clk 0:01:16]}  Ke6 {[%clk 0:01:44]} 34. Be3 {[%clk 0:01:16]}  Re2 {[%clk 0:01:36]} 35. Bxd4 {[%clk 0:01:15]}  Re4 {[%clk 0:01:37]} 36. Be3 {[%clk 0:01:15]}  d4 {[%clk 0:01:37]} 37. Bd2 {[%clk 0:01:15]}  Kf5 {[%clk 0:01:36]} 38. Kc2 {[%clk 0:01:15]}  Re2 {[%clk 0:01:35]} 39. Rf1 {[%clk 0:01:14]}  Kg4 {[%clk 0:01:33]} 40. f4 {[%clk 0:01:00]}  Kxg3 {[%clk 0:01:27]} 41. Rg1+ {[%clk 0:01:00]}  Rg2 {[%clk 0:01:24]} 42. Rxg2+ {[%clk 0:00:56]}  Kxg2 {[%clk 0:01:25]} 43. Bb4 {[%clk 0:00:55]}  Kg3 {[%clk 0:01:23]} 44. Bf8 {[%clk 0:00:54]}  g6 {[%clk 0:01:13]} 45. Bg7 {[%clk 0:00:51]}  d3+ {[%clk 0:01:12]} 46. Kd2 {[%clk 0:00:47]}  f5 {[%clk 0:01:13]} 47. Bd4 {[%clk 0:00:36]}  Kxh4 {[%clk 0:01:10]} 48. Bf2+ {[%clk 0:00:28]}  Kg4 {[%clk 0:01:10]} 49. Ke3 {[%clk 0:00:29]}  h4 {[%clk 0:01:10]} 50. Bg1 {[%clk 0:00:30]}  g5 {[%clk 0:01:07]} 51. fxg5 {[%clk 0:00:28]}  f4+ {[%clk 0:01:08]} 52. Kd2 {[%clk 0:00:25]}  Kxg5 {[%clk 0:01:08]} 53. Kc3 {[%clk 0:00:24]}  h3 {[%clk 0:01:08]} 54. Bh2 {[%clk 0:00:25]}  f3 {[%clk 0:01:07]} 55. Bg3 {[%clk 0:00:19]}  h2 {[%clk 0:01:06]} 0-1


[Site "https://www.chess.com"]

[Event "Titled Tuesday Blitz August 1 Early 2023"]
[White "Gunduz, Umut Erdem"]
[Black "Demidov, Mikhail"]
[WhiteFideId "6381383"]
[BlackFideId "4197143"]
[WhiteElo "2585"]
[BlackElo "2911"]
[Result "0-1"]
[Round "2"]
[TimeControl "180+1"]
[Date "2023.08.01"]
[WhiteClock "0:00:08"]
[BlackClock "0:00:08"]
[Board "26"]

1. e4 {[%clk 0:03:00]}  Nf6 {[%clk 0:02:54]} 2. e5 {[%clk 0:03:00]}  Nd5 {[%clk 0:02:54]} 3. d4 {[%clk 0:03:01]}  d6 {[%clk 0:02:54]} 4. Nf3 {[%clk 0:03:01]}  Nb6 {[%clk 0:02:53]} 5. a4 {[%clk 0:03:00]}  a5 {[%clk 0:02:52]} 6. Bd3 {[%clk 0:03:00]}  g6 {[%clk 0:02:52]} 7. h3 {[%clk 0:02:58]}  Bg7 {[%clk 0:02:52]} 8. O-O {[%clk 0:02:58]}  O-O {[%clk 0:02:52]} 9. Re1 {[%clk 0:02:57]}  Nc6 {[%clk 0:02:53]} 10. exd6 {[%clk 0:02:52]}  cxd6 {[%clk 0:02:52]} 11. c3 {[%clk 0:02:53]}  e5 {[%clk 0:02:51]} 12. Be3 {[%clk 0:02:50]}  h6 {[%clk 0:02:41]} 13. Qd2 {[%clk 0:02:36]}  Kh7 {[%clk 0:02:39]} 14. dxe5 {[%clk 0:02:30]}  dxe5 {[%clk 0:02:36]} 15. Bxg6+ {[%clk 0:02:28]}  Kxg6 {[%clk 0:02:32]} 16. Qxd8 {[%clk 0:02:26]}  Rxd8 {[%clk 0:02:32]} 17. Bxb6 {[%clk 0:02:27]}  Rd5 {[%clk 0:02:32]} 18. Na3 {[%clk 0:02:23]}  Rd3 {[%clk 0:01:56]} 19. Rad1 {[%clk 0:02:15]}  Rxd1 {[%clk 0:01:53]} 20. Rxd1 {[%clk 0:02:16]}  e4 {[%clk 0:01:44]} 21. Nd4 {[%clk 0:02:14]}  Ne5 {[%clk 0:01:36]} 22. Ndb5 {[%clk 0:01:59]}  Nd3 {[%clk 0:01:29]} 23. b3 {[%clk 0:01:50]}  Ra6 {[%clk 0:01:18]} 24. Bd4 {[%clk 0:01:48]}  Bf8 {[%clk 0:01:15]} 25. Nc4 {[%clk 0:01:48]}  Be6 {[%clk 0:01:13]} 26. f3 {[%clk 0:01:27]}  Bxc4 {[%clk 0:01:11]} 27. bxc4 {[%clk 0:01:28]}  f5 {[%clk 0:01:11]} 28. fxe4 {[%clk 0:01:28]}  fxe4 {[%clk 0:01:12]} 29. Rf1 {[%clk 0:01:24]}  Be7 {[%clk 0:01:02]} 30. Nc7 {[%clk 0:01:23]}  Rc6 {[%clk 0:01:01]} 31. Nd5 {[%clk 0:01:23]}  Bg5 {[%clk 0:00:59]} 32. Rb1 {[%clk 0:01:19]}  Rxc4 {[%clk 0:00:53]} 33. Rxb7 {[%clk 0:01:19]}  Rxa4 {[%clk 0:00:49]} 34. Rg7+ {[%clk 0:00:53]}  Kf5 {[%clk 0:00:42]} 35. g4+ {[%clk 0:00:33]}  Ke6 {[%clk 0:00:41]} 36. Nc7+ {[%clk 0:00:31]}  Kd6 {[%clk 0:00:40]} 37. Nb5+ {[%clk 0:00:29]}  Kc6 {[%clk 0:00:36]} 38. Na7+ {[%clk 0:00:29]}  Kd5 {[%clk 0:00:33]} 39. Rd7+ {[%clk 0:00:18]}  Kc4 {[%clk 0:00:33]} 40. Nc6 {[%clk 0:00:16]}  e3 {[%clk 0:00:19]} 41. Kf1 {[%clk 0:00:11]}  Ra1+ {[%clk 0:00:18]} 42. Ke2 {[%clk 0:00:12]}  Ra2+ {[%clk 0:00:18]} 43. Kf3 {[%clk 0:00:12]}  e2 {[%clk 0:00:18]} 44. Nxa5+ {[%clk 0:00:08]}  Kb5 {[%clk 0:00:10]} 45. c4+ {[%clk 0:00:06]}  Kxa5 {[%clk 0:00:09]} 46. Bc3+ {[%clk 0:00:06]}  Ka4 {[%clk 0:00:08]} 47. Rxd3 {[%clk 0:00:07]}  Bh4 {[%clk 0:00:06]} 48. Re3 {[%clk 0:00:07]}  Rc2 {[%clk 0:00:05]} 49. Ke4 {[%clk 0:00:04]}  Rxc3 {[%clk 0:00:05]} 50. Rxe2 {[%clk 0:00:05]}  Rxh3 {[%clk 0:00:04]} 51. Kd5 {[%clk 0:00:05]}  Ra3 {[%clk 0:00:02]} 52. c5 {[%clk 0:00:05]}  Kb5 {[%clk 0:00:02]} 53. Rb2+ {[%clk 0:00:05]}  Ka6 {[%clk 0:00:02]} 54. c6 {[%clk 0:00:06]}  Rd3+ {[%clk 0:00:02]} 55. Kc4 {[%clk 0:00:05]}  Rd1 {[%clk 0:00:02]} 56. Kc5 {[%clk 0:00:04]}  Rc1+ {[%clk 0:00:03]} 57. Kd5 {[%clk 0:00:04]}  Bg3 {[%clk 0:00:03]} 58. Rb3 {[%clk 0:00:04]}  Bf4 {[%clk 0:00:03]} 59. Rb4 {[%clk 0:00:04]}  Bg5 {[%clk 0:00:03]} 60. Rb3 {[%clk 0:00:04]}  Ka7 {[%clk 0:00:04]} 61. Rb4 {[%clk 0:00:05]}  Bd8 {[%clk 0:00:04]} 62. Rb7+ {[%clk 0:00:05]}  Ka6 {[%clk 0:00:04]} 63. Rb3 {[%clk 0:00:05]}  Ba5 {[%clk 0:00:04]} 64. Kd6 {[%clk 0:00:05]}  Bb6 {[%clk 0:00:03]} 65. Ra3+ {[%clk 0:00:05]}  Kb5 {[%clk 0:00:03]} 66. Rb3+ {[%clk 0:00:05]}  Ka5 {[%clk 0:00:04]} 67. Ra3+ {[%clk 0:00:05]}  Kb4 {[%clk 0:00:04]} 68. Ra2 {[%clk 0:00:06]}  Be3 {[%clk 0:00:04]} 69. Rb2+ {[%clk 0:00:06]}  Kc3 {[%clk 0:00:04]} 70. Rb7 {[%clk 0:00:06]}  Kd3 {[%clk 0:00:05]} 71. c7 {[%clk 0:00:06]}  Bf4+ {[%clk 0:00:05]} 72. Kd7 {[%clk 0:00:06]}  Bxc7 {[%clk 0:00:05]} 73. Rxc7 {[%clk 0:00:07]}  Rxc7+ {[%clk 0:00:05]} 74. Kxc7 {[%clk 0:00:08]}  Ke4 {[%clk 0:00:06]} 75. Kd6 {[%clk 0:00:09]}  Kf4 {[%clk 0:00:07]} 76. Kd5 {[%clk 0:00:08]}  Kxg4 {[%clk 0:00:07]} 77. Ke4 {[%clk 0:00:09]}  Kg3 {[%clk 0:00:07]} 78. Ke3 {[%clk 0:00:09]}  h5 {[%clk 0:00:07]} 79. Ke2 {[%clk 0:00:08]}  Kg2 {[%clk 0:00:08]} 0-1


[Site "https://www.chess.com"]

[Event "Titled Tuesday Blitz August 1 Early 2023"]
[White "Harshavardhan G B"]
[Black "Sturt, Raven"]
[WhiteFideId "25059009"]
[BlackFideId "2007304"]
[WhiteElo "2887"]
[BlackElo "2577"]
[Result "0-1"]
[Round "2"]
[TimeControl "180+1"]
[Date "2023.08.01"]
[WhiteClock "0:00:24"]
[BlackClock "0:00:19"]
[Board "31"]

1. e4 {[%clk 0:03:00]}  c5 {[%clk 0:02:58]} 2. Nf3 {[%clk 0:02:58]}  d6 {[%clk 0:02:59]} 3. d4 {[%clk 0:02:57]}  cxd4 {[%clk 0:03:00]} 4. Nxd4 {[%clk 0:02:58]}  Nf6 {[%clk 0:03:00]} 5. Nc3 {[%clk 0:02:58]}  a6 {[%clk 0:03:01]} 6. Qf3 {[%clk 0:02:58]}  Nbd7 {[%clk 0:02:54]} 7. h3 {[%clk 0:02:56]}  e6 {[%clk 0:02:48]} 8. g4 {[%clk 0:02:56]}  Ne5 {[%clk 0:02:48]} 9. Qg2 {[%clk 0:02:56]}  Qb6 {[%clk 0:02:48]} 10. Nb3 {[%clk 0:02:55]}  h6 {[%clk 0:02:29]} 11. Be3 {[%clk 0:02:49]}  Qc7 {[%clk 0:02:29]} 12. f4 {[%clk 0:01:31]}  Nc4 {[%clk 0:02:28]} 13. Bxc4 {[%clk 0:01:29]}  Qxc4 {[%clk 0:02:29]} 14. O-O-O {[%clk 0:01:29]}  Bd7 {[%clk 0:02:26]} 15. g5 {[%clk 0:01:26]}  hxg5 {[%clk 0:02:18]} 16. fxg5 {[%clk 0:01:26]}  Nh5 {[%clk 0:02:15]} 17. g6 {[%clk 0:01:26]}  Rc8 {[%clk 0:02:12]} 18. gxf7+ {[%clk 0:01:23]}  Kxf7 {[%clk 0:02:13]} 19. Rhf1+ {[%clk 0:01:23]}  Nf6 {[%clk 0:02:13]} 20. e5 {[%clk 0:01:22]}  Bc6 {[%clk 0:02:09]} 21. Qg3 {[%clk 0:01:08]}  dxe5 {[%clk 0:02:06]} 22. Bg5 {[%clk 0:01:07]}  Be7 {[%clk 0:01:49]} 23. Na5 {[%clk 0:01:05]}  Qb4 {[%clk 0:01:40]} 24. Nxc6 {[%clk 0:01:04]}  Rxc6 {[%clk 0:01:40]} 25. Bxf6 {[%clk 0:00:56]}  gxf6 {[%clk 0:01:33]} 26. Rg1 {[%clk 0:00:56]}  Qf4+ {[%clk 0:01:33]} 27. Qxf4 {[%clk 0:00:54]}  exf4 {[%clk 0:01:34]} 28. Rd7 {[%clk 0:00:53]}  Rxh3 {[%clk 0:01:29]} 29. Rxb7 {[%clk 0:00:52]}  f5 {[%clk 0:01:08]} 30. Re1 {[%clk 0:00:50]}  f3 {[%clk 0:00:33]} 31. Nd5 {[%clk 0:00:41]}  exd5 {[%clk 0:00:32]} 32. Rbxe7+ {[%clk 0:00:41]}  Kf6 {[%clk 0:00:32]} 33. Re8 {[%clk 0:00:37]}  Rh2 {[%clk 0:00:29]} 34. c3 {[%clk 0:00:37]}  d4 {[%clk 0:00:26]} 35. Rf8+ {[%clk 0:00:34]}  Kg5 {[%clk 0:00:26]} 36. Re5 {[%clk 0:00:32]}  Rf6 {[%clk 0:00:23]} 37. Rg8+ {[%clk 0:00:20]}  Kf4 {[%clk 0:00:23]} 38. Re1 {[%clk 0:00:20]}  dxc3 {[%clk 0:00:22]} 39. bxc3 {[%clk 0:00:21]}  Rc6 {[%clk 0:00:21]} 40. Kb1 {[%clk 0:00:22]}  Rxc3 {[%clk 0:00:21]} 41. Rd8 {[%clk 0:00:22]}  Rc4 {[%clk 0:00:21]} 42. Rdd1 {[%clk 0:00:22]}  Rb4+ {[%clk 0:00:20]} 43. Ka1 {[%clk 0:00:23]}  Ra4 {[%clk 0:00:21]} 44. Kb1 {[%clk 0:00:23]}  Rhxa2 {[%clk 0:00:19]} 45. Rh1 {[%clk 0:00:23]}  Ra1+ {[%clk 0:00:19]} 46. Kc2 {[%clk 0:00:24]}  Rxd1 {[%clk 0:00:18]} 47. Rxd1 {[%clk 0:00:24]}  Re4 {[%clk 0:00:19]} 48. Rh1 {[%clk 0:00:24]}  f2 {[%clk 0:00:19]} 49. Kd2 {[%clk 0:00:24]}  Kg3 {[%clk 0:00:19]} 0-1


[Site "https://www.chess.com"]

[Event "Titled Tuesday Blitz August 1 Early 2023"]
[White "Ingebretsen, Jens E"]
[Black "Harsh Suresh"]
[WhiteFideId "1522965"]
[BlackFideId "45018464"]
[WhiteElo "2576"]
[BlackElo "2886"]
[Result "0-1"]
[Round "2"]
[TimeControl "180+1"]
[Date "2023.08.01"]
[WhiteClock "0:00:13"]
[BlackClock "0:00:04"]
[Board "32"]

1. d4 {[%clk 0:03:00]}  d6 {[%clk 0:02:58]} 2. e4 {[%clk 0:03:00]}  Nf6 {[%clk 0:02:54]} 3. Nc3 {[%clk 0:03:00]}  a6 {[%clk 0:02:54]} 4. Bc4 {[%clk 0:03:00]}  b5 {[%clk 0:02:54]} 5. Bb3 {[%clk 0:03:01]}  Bb7 {[%clk 0:02:48]} 6. f3 {[%clk 0:03:00]}  Nbd7 {[%clk 0:02:46]} 7. Be3 {[%clk 0:03:00]}  e6 {[%clk 0:02:38]} 8. Nge2 {[%clk 0:03:00]}  Be7 {[%clk 0:02:38]} 9. a4 {[%clk 0:02:51]}  b4 {[%clk 0:02:36]} 10. Na2 {[%clk 0:02:52]}  c5 {[%clk 0:02:35]} 11. dxc5 {[%clk 0:02:51]}  dxc5 {[%clk 0:02:32]} 12. O-O {[%clk 0:02:49]}  O-O {[%clk 0:02:31]} 13. c3 {[%clk 0:02:39]}  a5 {[%clk 0:02:28]} 14. Nac1 {[%clk 0:02:39]}  Ba6 {[%clk 0:02:16]} 15. Qe1 {[%clk 0:02:37]}  Ne5 {[%clk 0:02:04]} 16. Qf2 {[%clk 0:02:33]}  Qc8 {[%clk 0:01:53]} 17. Rd1 {[%clk 0:02:27]}  Rb8 {[%clk 0:01:51]} 18. Nf4 {[%clk 0:02:15]}  c4 {[%clk 0:01:43]} 19. Bc2 {[%clk 0:02:14]}  b3 {[%clk 0:01:32]} 20. Bb1 {[%clk 0:02:11]}  Neg4 {[%clk 0:01:24]} 21. fxg4 {[%clk 0:01:58]}  Nxg4 {[%clk 0:01:25]} 22. Qg3 {[%clk 0:01:47]}  Nxe3 {[%clk 0:01:25]} 23. Nh5 {[%clk 0:01:45]}  g6 {[%clk 0:01:25]} 24. Qxe3 {[%clk 0:01:45]}  Bc5 {[%clk 0:01:24]} 25. Rd4 {[%clk 0:01:45]}  Qd8 {[%clk 0:01:02]} 26. Ne2 {[%clk 0:01:25]}  e5 {[%clk 0:00:35]} 27. Qh6 {[%clk 0:01:25]}  gxh5 {[%clk 0:00:34]} 28. Qxa6 {[%clk 0:01:25]}  exd4 {[%clk 0:00:29]} 29. Qxc4 {[%clk 0:01:20]}  d3+ {[%clk 0:00:10]} 30. Qxc5 {[%clk 0:01:15]}  dxe2 {[%clk 0:00:09]} 31. Bd3 {[%clk 0:01:16]}  Rc8 {[%clk 0:00:05]} 32. Qe3 {[%clk 0:01:13]}  Qf6 {[%clk 0:00:04]} 33. Bxe2 {[%clk 0:01:11]}  Rfd8 {[%clk 0:00:04]} 34. Rf1 {[%clk 0:01:11]}  Qg6 {[%clk 0:00:04]} 35. Rf3 {[%clk 0:01:11]}  h4 {[%clk 0:00:03]} 36. Rf4 {[%clk 0:01:11]}  Kf8 {[%clk 0:00:01]} 37. Rg4 {[%clk 0:01:09]}  Qf6 {[%clk 0:00:01]} 38. Rf4 {[%clk 0:01:09]}  Qe6 {[%clk 0:00:01]} 39. Bh5 {[%clk 0:01:08]}  Rc7 {[%clk 0:00:01]} 40. Qf3 {[%clk 0:01:08]}  Rb7 {[%clk 0:00:01]} 41. h3 {[%clk 0:01:04]}  Rc8 {[%clk 0:00:01]} 42. Bg4 {[%clk 0:01:04]}  Qb6+ {[%clk 0:00:02]} 43. Kh2 {[%clk 0:01:04]}  Rcc7 {[%clk 0:00:03]} 44. e5 {[%clk 0:01:04]}  Qg6 {[%clk 0:00:02]} 45. e6 {[%clk 0:01:05]}  Kg8 {[%clk 0:00:02]} 46. exf7+ {[%clk 0:01:05]}  Rxf7 {[%clk 0:00:02]} 47. Rxf7 {[%clk 0:01:02]}  Rxf7 {[%clk 0:00:03]} 48. Qa8+ {[%clk 0:01:01]}  Rf8 {[%clk 0:00:03]} 49. Qd5+ {[%clk 0:01:01]}  Kg7 {[%clk 0:00:04]} 50. Qxa5 {[%clk 0:00:57]}  Qd6+ {[%clk 0:00:04]} 51. Kg1 {[%clk 0:00:57]}  Qf4 {[%clk 0:00:03]} 52. Qa7+ {[%clk 0:00:54]}  Qf7 {[%clk 0:00:03]} 53. Qd4+ {[%clk 0:00:54]}  Qf6 {[%clk 0:00:04]} 54. Be6 {[%clk 0:00:50]}  Qxd4+ {[%clk 0:00:04]} 55. cxd4 {[%clk 0:00:51]}  Rb8 {[%clk 0:00:04]} 56. a5 {[%clk 0:00:50]}  Ra8 {[%clk 0:00:03]} 57. Bxb3 {[%clk 0:00:49]}  Rxa5 {[%clk 0:00:04]} 58. Bc4 {[%clk 0:00:49]}  Ra1+ {[%clk 0:00:03]} 59. Kf2 {[%clk 0:00:48]}  Kf6 {[%clk 0:00:04]} 60. Kf3 {[%clk 0:00:47]}  h5 {[%clk 0:00:04]} 61. b3 {[%clk 0:00:44]}  Rc1 {[%clk 0:00:04]} 62. d5 {[%clk 0:00:44]}  Ke5 {[%clk 0:00:04]} 63. d6 {[%clk 0:00:44]}  Rc3+ {[%clk 0:00:03]} 64. Kf2 {[%clk 0:00:40]}  Kxd6 {[%clk 0:00:04]} 65. Bf7 {[%clk 0:00:39]}  Ke5 {[%clk 0:00:02]} 66. b4 {[%clk 0:00:39]}  Kf4 {[%clk 0:00:02]} 67. Bxh5 {[%clk 0:00:38]}  Rc2+ {[%clk 0:00:03]} 68. Be2 {[%clk 0:00:39]}  Rb2 {[%clk 0:00:03]} 69. b5 {[%clk 0:00:39]}  Ke4 {[%clk 0:00:04]} 70. b6 {[%clk 0:00:31]}  Rxb6 {[%clk 0:00:05]} 71. g3 {[%clk 0:00:30]}  Rf6+ {[%clk 0:00:03]} 72. Kg2 {[%clk 0:00:29]}  Ke3 {[%clk 0:00:04]} 73. Bb5 {[%clk 0:00:15]}  Rf2+ {[%clk 0:00:03]} 74. Kg1 {[%clk 0:00:16]}  hxg3 {[%clk 0:00:04]} 75. Bc6 {[%clk 0:00:16]}  Rc2 {[%clk 0:00:03]} 76. Bb5 {[%clk 0:00:17]}  Kf3 {[%clk 0:00:03]} 77. Bf1 {[%clk 0:00:11]}  Rc1 {[%clk 0:00:03]} 78. h4 {[%clk 0:00:11]}  g2 {[%clk 0:00:04]} 79. Kh2 {[%clk 0:00:12]}  Rxf1 {[%clk 0:00:04]} 80. h5 {[%clk 0:00:13]}  Rh1# {[%clk 0:00:04]} 0-1


[Site "https://www.chess.com"]